fUST/lending_fUST_20250512
["ID","MTS","AMOUNT","RATE_DAILY","PERIOD"]
[360767531,1746999006076,-11427.1088822,0.00038,30]
[360767533,1746999006101,-98200.6841457,0.00038,30]
[360767536,1746999006129,-1000.0,0.00038,120]
[360767537,1746999006158,-1218.75034443,0.00038053,66]
[360767539,1746999006186,-16625.96,0.00038356,120]
[360767541,1746999006214,-152.28642814,0.0003836,120]
[360767543,1746999006239,-152.28642814,0.0003836,120]
[360767545,1746999006264,-152.28642814,0.0003836,120]
[360767547,1746999006291,-152.28642814,0.0003836,120]
[360767549,1746999006316,-152.28642814,0.0003836,120]
[360767551,1746999006341,-152.28642814,0.0003836,120]
[360767553,1746999006366,-152.28642814,0.0003836,120]
[360767555,1746999006390,-152.28642814,0.0003836,120]
[360767557,1746999006416,-152.28642814,0.0003836,120]
[360767559,1746999006442,-152.28642814,0.0003836,120]
[360767560,1746999006468,-152.28642814,0.0003836,120]
[360767561,1746999006493,-152.28642814,0.0003836,120]
[360767562,1746999006517,-152.28642814,0.0003836,120]
[360767563,1746999006542,-152.28642814,0.0003836,120]
[360767564,1746999006567,-152.28642814,0.0003836,120]
[360767565,1746999006593,-152.28642814,0.0003836,120]
[360767566,1746999006617,-152.28642814,0.0003836,120]
[360767567,1746999006641,-152.28642814,0.0003836,120]
[360767568,1746999006667,-152.28,0.0003836,120]
[360767569,1746999006692,-337.56824905,0.0003836,120]
[360767571,1746999006716,-337.56824905,0.0003836,120]
[360767572,1746999006741,-337.56824905,0.0003836,120]
[360767574,1746999006768,-337.56824905,0.0003836,120]
[360767576,1746999006795,-337.56824905,0.0003836,120]
[360767578,1746999006820,-337.56824905,0.0003836,120]
[360767580,1746999006845,-337.56824905,0.0003836,120]
[360767582,1746999006869,-337.56824905,0.0003836,120]
[360767584,1746999006895,-337.56824905,0.0003836,120]
[360767586,1746999006919,-337.56824905,0.0003836,120]
[360767588,1746999006944,-337.56824905,0.0003836,120]
[360767590,1746999006969,-337.56824905,0.0003836,120]
[360767591,1746999006994,-337.56824905,0.0003836,120]
[360767593,1746999007020,-337.56824905,0.0003836,120]
[360767595,1746999007045,-337.56824905,0.0003836,120]
[360767597,1746999007070,-337.56824905,0.0003836,120]
[360767599,1746999007095,-337.56824905,0.0003836,120]
[360767601,1746999007122,-337.56824905,0.0003836,120]
[360767603,1746999007148,-337.56824905,0.0003836,120]
[360767605,1746999007173,-337.56,0.0003836,120]
[360767607,1746999007197,-296.7042503,0.0003836,120]
[360767609,1746999007222,-296.7042503,0.0003836,120]
[360767611,1746999007247,-296.7042503,0.0003836,120]
[360767613,1746999007271,-296.7042503,0.0003836,120]
[360767615,1746999007296,-296.7042503,0.0003836,120]
[360767616,1746999007320,-296.7042503,0.0003836,120]
[360767618,1746999007344,-296.7042503,0.0003836,120]
[360767620,1746999007368,-296.7042503,0.0003836,120]
[360767622,1746999007393,-296.7042503,0.0003836,120]
[360767624,1746999007418,-296.7042503,0.0003836,120]
[360767626,1746999007442,-296.7042503,0.0003836,120]
[360767628,1746999007466,-296.7042503,0.0003836,120]
[360767630,1746999007491,-296.7042503,0.0003836,120]
[360767631,1746999007515,-296.7042503,0.0003836,120]
[360767633,1746999007539,-296.7042503,0.0003836,120]
[360767635,1746999007564,-296.7042503,0.0003836,120]
[360767637,1746999007588,-296.7042503,0.0003836,120]
[360767639,1746999007613,-296.7042503,0.0003836,120]
[360767645,1746999007750,-296.7042503,0.0003836,120]
[360767647,1746999007776,-296.7,0.0003836,120]
[360767649,1746999007801,-692.30991736,0.0003836,120]
[360767651,1746999007826,-692.30991736,0.0003836,120]
[360767653,1746999007852,-692.30991736,0.0003836,120]
[360767655,1746999007877,-692.30991736,0.0003836,120]
[360767656,1746999007906,-692.30991736,0.0003836,120]
[360767658,1746999007930,-692.30991736,0.0003836,120]
[360767660,1746999007955,-692.30991736,0.0003836,120]
[360767662,1746999007980,-692.30991736,0.0003836,120]
[360767664,1746999008006,-692.30991736,0.0003836,120]
[360767666,1746999008032,-692.30991736,0.0003836,120]
[360767668,1746999008057,-692.30991736,0.0003836,120]
[360767670,1746999008082,-692.30991736,0.0003836,120]
[360767672,1746999008110,-692.30991736,0.0003836,120]
[360767674,1746999008139,-692.30991736,0.0003836,120]
[360767676,1746999008164,-692.30991736,0.0003836,120]
[360767678,1746999008190,-692.30991736,0.0003836,120]
[360767680,1746999008218,-692.30991736,0.0003836,120]
[360767682,1746999008246,-692.30991736,0.0003836,120]
[360767683,1746999008273,-692.30991736,0.0003836,120]
[360767685,1746999008301,-692.3,0.0003836,120]
[360767687,1746999008327,-200.0,0.0003836,49]
[360767689,1746999008354,-151.58174852,0.0003836,120]
[360767690,1746999008381,-151.58174852,0.0003836,120]
[360767692,1746999008408,-151.58174852,0.0003836,120]
[360767694,1746999008433,-151.58174852,0.0003836,120]
[360767696,1746999008459,-151.58174852,0.0003836,120]
[360767698,1746999008484,-151.58174852,0.0003836,120]
[360767700,1746999008510,-151.58174852,0.0003836,120]
[360767702,1746999008536,-151.58174852,0.0003836,120]
[360767704,1746999008561,-151.58174852,0.0003836,120]
[360767706,1746999008587,-151.58174852,0.0003836,120]
[360767708,1746999008612,-151.58174852,0.0003836,120]
[360767710,1746999008637,-151.58174852,0.0003836,120]
[360767712,1746999008662,-151.58174852,0.0003836,120]
[360767713,1746999008689,-151.58174852,0.0003836,120]
[360767715,1746999008716,-151.58174852,0.0003836,120]
[360767717,1746999008741,-151.58,0.0003836,120]
[360767719,1746999008768,-282.95259724,0.0003836,120]
[360767721,1746999008795,-282.95259724,0.0003836,120]
[360767723,1746999008821,-282.95259724,0.0003836,120]
[360767725,1746999008847,-282.95259724,0.0003836,120]
[360767727,1746999008883,-282.95259724,0.0003836,120]
[360767729,1746999008916,-282.95259724,0.0003836,120]
[360767732,1746999008944,-282.95259724,0.0003836,120]
[360767733,1746999008972,-282.95259724,0.0003836,120]
[360767735,1746999009000,-282.95259724,0.0003836,120]
[360767737,1746999009028,-282.95259724,0.0003836,120]
[360767739,1746999009056,-282.95259724,0.0003836,120]
[360767741,1746999009084,-282.95259724,0.0003836,120]
[360767743,1746999009111,-257.5,0.000385,120]
[360767745,1746999009143,-10000.0,0.000385,50]
[360767748,1746999009173,-700.0,0.00038803,60]
[360767749,1746999009202,-200.0,0.000389,30]
[360767752,1746999009230,-15080.04670426,0.00039,30]
[360767753,1746999009258,-10000.0,0.00039,30]
[360767755,1746999009285,-963.42860913,0.00039,120]
[360767757,1746999009312,-1408.05593127,0.00039,120]
[360767759,1746999009337,-1394.90202606,0.00039,120]
[360767761,1746999009365,-254492.0,0.0003902,30]
[360767762,1746999009390,-409741.0,0.0003904,30]
[360767763,1746999009416,-15868.81162444,0.000392,30]
[360767764,1746999009442,-1001.96295883,0.000394,60]
[360767765,1746999009469,-511023.0,0.0003944,30]
[360767766,1746999009495,-396275.14604491,0.000395,30]
[360767767,1746999009521,-5300.88514574,0.000398,120]
[360767768,1746999009546,-700.0,0.00039899,60]
[360767769,1746999009572,-8040.0,0.0003999,30]
[360767770,1746999009599,-446158.8339276,0.0004,30]
[360768055,1746999032422,-1000.0,0.00024452,2]
[360768056,1746999032432,-157.77,0.00024597,2]
[360768057,1746999032442,-185.67500342,0.00024658,2]
[360768058,1746999032451,-171.52109647,0.00024693,11]
[360768059,1746999032463,-125.79356409,0.00024693,11]
[360768060,1746999032472,-500.0,0.00024973,2]
[360768061,1746999032480,-500.0,0.00024973,2]
[360768062,1746999032490,-111.81946497,0.00024999,2]
[360768063,1746999032501,-1035.18053503,0.00024999,2]
[360768064,1746999032510,-863.98317144,0.00025,7]
[360768065,1746999032519,-1058.4406245,0.00025,2]
[360768066,1746999032528,-1160.9529764,0.00025,2]
[360768068,1746999032552,-2369.73086479,0.00025,2]
[360768077,1746999038321,-624.20491612,0.00025,2]
[360768131,1746999043669,-919.42642624,0.00025,2]
[360768168,1746999046441,-10755.82493558,0.00025,2]
[360768169,1746999046450,-1207.7411781,0.00025,2]
[360768170,1746999046557,-1399.35191823,0.00025,2]
[360768171,1746999046567,-301.99999939,0.00025,5]
[360768172,1746999046576,-216.53031,0.00025082,2]
[360768173,1746999046589,-210.19,0.000251,2]
[360768174,1746999046598,-297.31466056,0.00025176,12]
[360768175,1746999046607,-900.0,0.00025469,3]
[360768176,1746999046616,-1000.0,0.000255,2]
[360768177,1746999046626,-297.31466056,0.00025659,13]
[360768178,1746999046635,-422.1676983,0.00025694,2]
[360768179,1746999046644,-160.0,0.00025878,2]
[360768180,1746999046654,-212.1539542,0.00025878,2]
[360768181,1746999046664,-160.0,0.00025878,2]
[360768182,1746999046673,-997.71092301,0.00025886,2]
[360768183,1746999046682,-5000.0,0.00026,2]
[360768184,1746999046692,-518.46120579,0.00026,2]
[360768185,1746999046701,-297.31466056,0.00026141,14]
[360768187,1746999046710,-409.44443445,0.0002615,2]
[360768189,1746999046719,-780.21364392,0.000266,4]
[360768190,1746999046728,-297.31466056,0.00026624,15]
[360768192,1746999046737,-332.795024,0.00026676,2]
[360768194,1746999046747,-155.0,0.00026963,2]
[360768195,1746999046755,-3355.86728842,0.00027,2]
[360768197,1746999046764,-314.1995513,0.00027,3]
[360768198,1746999046774,-297.31466056,0.00027107,16]
[360768199,1746999046783,-160.0,0.00027248,2]
[360768200,1746999046792,-7928.34074619,0.00027248,2]
[360768201,1746999046849,-160.0,0.0003,30]
[360768202,1746999046989,-314.1995513,0.00033,30]
[360768203,1746999047016,-314.1995513,0.00033,120]
[360768204,1746999047053,-282.95259724,0.0003836,120]
[360768205,1746999047081,-282.95259724,0.0003836,120]
[360768206,1746999047252,-282.95259724,0.0003836,120]
[360768207,1746999047289,-282.95259724,0.0003836,120]
[360768208,1746999047317,-282.95259724,0.0003836,120]
[360768209,1746999047344,-282.95259724,0.0003836,120]
[360768210,1746999047371,-282.95259724,0.0003836,120]
[360768211,1746999047399,-282.95,0.0003836,120]
[360768212,1746999047427,-426.285741,0.00039999,31]
[360768213,1746999047454,-390.84750202,0.00039999,31]
[360768214,1746999047480,-388.367272,0.00039999,31]
[360768215,1746999047506,-2577598.75157984,0.0004,30]
[360768216,1746999047532,-680200.36583582,0.0004,30]
[360768217,1746999047559,-510474.13021993,0.0004,30]
[360768218,1746999047586,-421.93699947,0.0004,30]
[360768219,1746999047613,-1227047.29756664,0.0004,30]
[360768226,1746999050688,-5000000.0,0.0004,30]
[360768227,1746999053937,-5000000.0,0.0004,30]
[360768228,1746999057160,-71841.45102414,0.0004,30]
[360768229,1746999057189,-1042474.70405814,0.0004,30]
[360768230,1746999057219,-201.56882909,0.0004,30]
[360768231,1746999057246,-114078.94225167,0.0004,30]
[360768232,1746999057273,-7554.87,0.0004,30]
[360768233,1746999057300,-2003.0,0.0004,30]
[360768234,1746999057326,-286202.7578478,0.0004,30]
[360768235,1746999057352,-1103.87354254,0.0004,30]
[360768236,1746999057378,-10000.0,0.0004,30]
[360768237,1746999057403,-50000.0,0.0004,30]
[360768238,1746999057428,-1346846.14999778,0.0004,30]
[360768239,1746999057454,-162.8,0.0004,33]
[360768240,1746999057480,-160.0,0.0004,33]
[360768241,1746999057505,-700.0,0.0004,90]
[360768242,1746999057530,-635.11802852,0.0004,120]
[360768243,1746999057556,-472.91612359,0.0004,90]
[360768244,1746999057580,-4379.948477,0.0004,120]
[360768245,1746999057605,-2150.47354889,0.0004,120]
[360768246,1746999057634,-1639.5263469,0.0004,120]
[360768247,1746999057659,-1798182.63933872,0.0004,30]
[360768248,1746999057684,-38564.26060949,0.0004,30]
[360768249,1746999057709,-705.49178635,0.0004,120]
[360768250,1746999057734,-1368.846072,0.0004,120]
[360768251,1746999057759,-27010.89924431,0.0004,30]
[360768252,1746999057790,-172.32144757,0.0004,60]
[360768253,1746999057815,-11854.0,0.0004,120]
[360768254,1746999057839,-4428.0,0.0004,120]
[360768255,1746999057865,-6134.0,0.0004,120]
[360768256,1746999057892,-1000.0,0.0004,120]
[360768257,1746999057919,-422.1676983,0.0004,120]
[360768258,1746999057944,-160.0,0.0004,120]
[360768259,1746999057969,-160.0,0.0004,30]
[360768260,1746999057995,-153.0,0.00040381,30]
[360768261,1746999058020,-153.0,0.00040381,30]
[360768262,1746999058046,-153.0,0.00040381,30]
[360768263,1746999058071,-153.0,0.00040381,30]
[360768264,1746999058243,-153.0,0.00040381,30]
[360768265,1746999058273,-153.0,0.00040381,30]
[360768266,1746999058300,-153.0,0.00040381,30]
[360768267,1746999058327,-153.0,0.00040381,30]
[360768268,1746999058353,-153.0,0.00040381,30]
[360768269,1746999058380,-153.0,0.00040386,30]
[360768270,1746999058406,-153.0,0.00040386,30]
[360768271,1746999058445,-153.0,0.00040386,30]
[360768272,1746999058483,-153.0,0.00040386,30]
[360768273,1746999058521,-153.0,0.00040386,30]
[360768274,1746999058559,-153.0,0.00040386,30]
[360768275,1746999058596,-153.0,0.00040386,30]
[360768276,1746999058633,-153.0,0.00040386,30]
[360768277,1746999058672,-153.0,0.00040386,30]
[360768278,1746999058710,-153.0,0.00040386,30]
[360768279,1746999058747,-153.0,0.00040386,30]
[360768280,1746999058785,-153.0,0.00040386,30]
[360768281,1746999058824,-153.0,0.00040386,30]
[360768282,1746999058863,-153.0,0.00040399,30]
[360768283,1746999058902,-153.0,0.00040399,30]
[360768284,1746999058942,-153.0,0.00040399,30]
[360768285,1746999058980,-153.0,0.00040399,30]
[360768286,1746999059019,-153.0,0.00040399,30]
[360768287,1746999059057,-153.0,0.00040399,30]
[360768288,1746999059096,-153.0,0.00040399,30]
[360768289,1746999059137,-153.0,0.00040399,30]
[360768290,1746999059182,-153.0,0.00040399,30]
[360768291,1746999059222,-153.0,0.00040399,30]
[360768292,1746999059263,-153.0,0.00040404,30]
[360768293,1746999059301,-153.0,0.00040404,30]
[360768294,1746999059339,-153.0,0.00040404,30]
[360768295,1746999059376,-153.0,0.00040404,30]
[360768296,1746999059414,-153.0,0.00040404,30]
[360768297,1746999059451,-153.0,0.00040404,30]
[360768298,1746999059488,-153.0,0.00040404,30]
[360768299,1746999059528,-153.0,0.00040404,30]
[360768300,1746999059566,-153.0,0.00040404,30]
[360768301,1746999059604,-153.0,0.00040404,30]
[360768302,1746999059643,-153.0,0.00040404,30]
[360768303,1746999059679,-153.0,0.00040404,30]
[360768304,1746999059717,-153.0,0.00040404,30]
[360768305,1746999059753,-153.0,0.00040416,30]
[360768306,1746999059790,-153.0,0.00040416,30]
[360768307,1746999059828,-153.0,0.00040416,30]
[360768308,1746999059864,-153.0,0.00040416,30]
[360768309,1746999059901,-153.0,0.00040416,30]
[360768310,1746999059940,-153.0,0.00040416,30]
[360768311,1746999059978,-153.0,0.00040416,30]
[360768312,1746999060014,-153.0,0.00040416,30]
[360768313,1746999060052,-153.0,0.00040416,30]
[360768314,1746999060093,-153.0,0.00040421,30]
[360768315,1746999060135,-153.0,0.00040421,30]
[360768316,1746999060180,-153.0,0.00040421,30]
[360768317,1746999060222,-153.0,0.00040421,30]
[360768318,1746999060263,-153.0,0.00040421,30]
[360768319,1746999060301,-153.0,0.00040421,30]
[360768320,1746999060340,-153.0,0.00040421,30]
[360768321,1746999060380,-153.0,0.00040421,30]
[360768322,1746999060419,-153.0,0.00040421,30]
[360768323,1746999060458,-153.0,0.00040421,30]
[360768324,1746999060497,-153.0,0.00040421,30]
[360768325,1746999060536,-153.0,0.00040421,30]
[360768326,1746999060572,-153.0,0.00040421,30]
[360768327,1746999060608,-153.0,0.00040435,30]
[360768328,1746999060644,-153.0,0.00040435,30]
[360768329,1746999060680,-153.0,0.00040435,30]
[360768330,1746999060716,-153.0,0.00040435,30]
[360768331,1746999060750,-153.0,0.00040435,30]
[360768332,1746999060786,-153.0,0.00040435,30]
[360768333,1746999060820,-153.0,0.00040435,30]
[360768334,1746999060854,-153.0,0.00040435,30]
[360768335,1746999060889,-153.0,0.00040435,30]
[360768336,1746999060924,-153.0,0.00040435,30]
[360768337,1746999060960,-153.0,0.0004044,30]
[360768338,1746999060996,-153.0,0.0004044,30]
[360768339,1746999061033,-153.0,0.0004044,30]
[360768340,1746999061069,-153.0,0.0004044,30]
[360768341,1746999061106,-153.0,0.0004044,30]
[360768342,1746999061145,-153.0,0.0004044,30]
[360768343,1746999061183,-153.0,0.0004044,30]
[360768344,1746999061221,-153.0,0.0004044,30]
[360768345,1746999061259,-153.0,0.0004044,30]
[360768346,1746999061295,-153.0,0.0004044,30]
[360768347,1746999061332,-153.0,0.0004044,30]
[360768348,1746999061370,-153.0,0.0004044,30]
[360768349,1746999061409,-153.0,0.0004044,30]
[360768350,1746999061446,-153.0,0.00040454,30]
[360768351,1746999061483,-153.0,0.00040454,30]
[360768352,1746999061522,-153.0,0.00040454,30]
[360768353,1746999061682,-153.0,0.00040454,30]
[360768354,1746999061721,-153.0,0.00040454,30]
[360768355,1746999061758,-153.0,0.00040454,30]
[360768356,1746999061794,-153.0,0.00040454,30]
[360768357,1746999061831,-153.0,0.00040454,30]
[360768358,1746999061867,-153.0,0.00040454,30]
[360768359,1746999061904,-153.0,0.0004046,30]
[360768360,1746999061941,-153.0,0.0004046,30]
[360768361,1746999061977,-153.0,0.0004046,30]
[360768362,1746999062015,-153.0,0.0004046,30]
[360768363,1746999062055,-153.0,0.0004046,30]
[360768364,1746999062094,-153.0,0.0004046,30]
[360768365,1746999062133,-153.0,0.0004046,30]
[360768366,1746999062178,-153.0,0.0004046,30]
[360768367,1746999062218,-153.0,0.0004046,30]
[360768368,1746999062258,-153.0,0.0004046,30]
[360768369,1746999062296,-153.0,0.0004046,30]
[360768370,1746999062336,-153.0,0.0004046,30]
[360768371,1746999062375,-153.0,0.0004046,30]
[360768372,1746999062412,-153.0,0.00040472,30]
[360768373,1746999062448,-153.0,0.00040472,30]
[360768374,1746999062484,-153.0,0.00040472,30]
[360768375,1746999062522,-153.0,0.00040472,30]
[360768376,1746999062560,-153.0,0.00040472,30]
[360768377,1746999062597,-153.0,0.00040472,30]
[360768378,1746999062636,-153.0,0.00040472,30]
[360768379,1746999062675,-153.0,0.00040477,30]
[360768380,1746999062714,-153.0,0.00040477,30]
[360768381,1746999062750,-153.0,0.00040477,30]
[360768382,1746999062785,-153.0,0.00040477,30]
[360768383,1746999062822,-153.0,0.00040477,30]
[360768384,1746999062859,-153.0,0.00040477,30]
[360768385,1746999062895,-153.0,0.00040477,30]
[360768386,1746999062931,-153.0,0.00040477,30]
[360768387,1746999062967,-153.0,0.00040477,30]
[360768388,1746999063004,-153.0,0.00040477,30]
[360768389,1746999063044,-10000.0,0.000405,80]
[360768390,1746999063085,-1530.0,0.000405,120]
[360768391,1746999063124,-248.855978,0.00040548,30]
[360768392,1746999063166,-5203.6502313,0.0004084,120]
[360768393,1746999063213,-200.0,0.0004086,55]
[360768394,1746999063257,-700.0,0.00040995,60]
[360768395,1746999063298,-160.0,0.00041,37]
[360768396,1746999063340,-1000.0,0.00041041,60]
[360768397,1746999063380,-1000.0,0.00041041,60]
[360768398,1746999063419,-1000.0,0.00041041,60]
[360768399,1746999063459,-1000.0,0.00041041,60]
[360768400,1746999063499,-1000.0,0.00041041,60]
[360768401,1746999063546,-1000.0,0.00041041,60]
[360768402,1746999063586,-1000.0,0.00041041,60]
[360768403,1746999063625,-1000.0,0.00041041,60]
[360768404,1746999063665,-1000.0,0.00041041,60]
[360768405,1746999063705,-1000.0,0.00041041,60]
[360768406,1746999063747,-1000.0,0.00041041,60]
[360768407,1746999063788,-1000.0,0.00041041,60]
[360768408,1746999063831,-1000.0,0.00041041,60]
[360768409,1746999063872,-1000.0,0.00041041,60]
[360768410,1746999063914,-1000.0,0.00041041,60]
[360768411,1746999063955,-1000.0,0.00041041,60]
[360768412,1746999063996,-1000.0,0.00041041,60]
[360768413,1746999064036,-1000.0,0.00041041,60]
[360768414,1746999064076,-1000.0,0.00041041,60]
[360768415,1746999064116,-1000.0,0.00041041,60]
[360768416,1746999064157,-1000.0,0.00041041,60]
[360768417,1746999064198,-694.89,0.00041041,60]
[360768418,1746999064241,-16625.96,0.00041095,120]
[360768419,1746999064281,-1525.547832,0.00041096,120]
[360768420,1746999064320,-15868.81162444,0.000412,120]
[360768421,1746999064361,-160.0,0.00041281,120]
[360768422,1746999064402,-15868.81062444,0.00041918,120]
[360768423,1746999064442,-15868.81062444,0.00041918,120]
[360768424,1746999064482,-160.0,0.00042,41]
[360768425,1746999064522,-11854.0,0.00042,120]
[360768426,1746999064561,-6134.0,0.00042,120]
[360768427,1746999064600,-2782.08210266,0.00042,120]
[360768428,1746999064642,-1000.0,0.00042,120]
[360768429,1746999064681,-500.0,0.00042034,30]
[360768430,1746999064720,-751.48124034,0.00042091,60]
[360768431,1746999064758,-8037.00022419,0.000425,120]
[360768432,1746999064797,-160.0,0.0004265,120]
[360768433,1746999064835,-1279.0,0.00043,120]
[360768434,1746999064875,-5045.08946136,0.00043,120]
[360768435,1746999064916,-4134.28378403,0.00043,120]
[360768436,1746999065057,500.0,0.00013699,2]
[360768437,1746999065091,543.36757432,0.00013699,2]
[360768438,1746999065185,165.01449407,0.00019178,2]
[360768439,1746999086631,-153.0,0.00039507,30]
[360768440,1746999086682,-153.0,0.00039507,30]
[360768441,1746999086736,-153.0,0.00039507,30]
[360768442,1746999086783,-153.0,0.00039507,30]
[360768443,1746999086835,-153.0,0.00039507,30]
[360768444,1746999086881,-153.0,0.00039507,30]
[360768445,1746999086924,-153.0,0.00039507,30]
[360768446,1746999086973,-153.0,0.00039507,30]
[360768447,1746999087020,-153.0,0.00039507,30]
[360768448,1746999087067,-153.0,0.00039507,30]
[360768449,1746999087116,-385.03381951,0.00039999,31]
[360768450,1746999087167,-500.0,0.00039999,31]
[360768451,1746999087209,-500.0,0.00039999,31]
[360768452,1746999087255,-500.0,0.00039999,31]
[360768453,1746999087304,-500.0,0.00039999,31]
[360768454,1746999087349,-500.0,0.00039999,31]
[360768455,1746999087393,-500.0,0.00039999,31]
[360768456,1746999087439,-500.0,0.00039999,31]
[360768457,1746999087481,-500.0,0.00039999,31]
[360768458,1746999087524,-500.0,0.00039999,31]
[360768459,1746999087571,-401.28876062,0.00039999,31]
[360768460,1746999087617,-214.74971788,0.00039999,31]
[360768461,1746999087663,-153.0,0.00040363,30]
[360768462,1746999087707,-153.0,0.00040363,30]
[360768463,1746999087752,-153.0,0.00040363,30]
[360768464,1746999087798,-153.0,0.00040363,30]
[360768465,1746999087843,-153.0,0.00040363,30]
[360768466,1746999087890,-153.0,0.00040363,30]
[360768467,1746999087936,-153.0,0.00040363,30]
[360768468,1746999087982,-153.0,0.00040363,30]
[360768469,1746999088028,-153.0,0.00040363,30]
[360768470,1746999088073,-153.0,0.00040363,30]
[360768471,1746999088119,-153.0,0.00040363,30]
[360768472,1746999088165,-153.0,0.00040363,30]
[360768473,1746999088212,-153.0,0.00040363,30]
[360768474,1746999088259,-4924.03403211,0.00043,120]
[360768475,1746999088303,-160.0,0.00043,46]
[360768476,1746999088347,-2400.4708491,0.00043,120]
[360768477,1746999088390,-11010.35183263,0.00043,60]
[360768478,1746999088436,-362.08771803,0.00043,120]
[360768479,1746999088480,-1530.0,0.00043,120]
[360768480,1746999088522,-8000.0,0.00043,30]
[360768481,1746999088561,-15868.81162444,0.000432,120]
[360768482,1746999088600,-2282.32697622,0.000432,120]
[360768483,1746999088639,-400.0,0.00043287,120]
[360768484,1746999088680,-400.0,0.00043287,120]
[360768485,1746999088717,-400.0,0.00043287,120]
[360768486,1746999088755,-400.0,0.00043287,120]
[360768487,1746999088793,-400.0,0.00043287,120]
[360768488,1746999088831,-400.0,0.00043287,120]
[360768489,1746999089090,-400.0,0.00043287,120]
[360768490,1746999089138,-400.0,0.00043287,120]
[360768491,1746999089199,-400.0,0.00043287,120]
[360768492,1746999089242,-439.75746956,0.00043287,120]
[360768493,1746999089283,-200.0,0.0004337,62]
[360768494,1746999089323,-452506.63,0.0004344,30]
[360768495,1746999089365,-10000.0,0.000435,90]
[360768496,1746999089405,-1952.98858749,0.0004379,120]
[360768497,1746999089446,-1000.0,0.000438,90]
[360768498,1746999089489,-1000.0,0.000438,90]
[360768499,1746999089531,-1756.63697008,0.000438,120]
[360768500,1746999089572,-16625.96,0.00043835,120]
[360768501,1746999089613,-151.0,0.00043836,30]
[360768502,1746999089653,-156.587,0.00043836,30]
[360768503,1746999089692,-162.380719,0.00043836,30]
[360768504,1746999089730,-168.3888056,0.00043836,30]
[360768505,1746999089772,-174.61919141,0.00043836,30]
[360768506,1746999089808,-181.08010149,0.00043836,30]
[360768507,1746999089848,-187.78006525,0.00043836,30]
[360768508,1746999089888,-194.72792766,0.00043836,30]
[360768509,1746999089928,-201.93286099,0.00043836,30]
[360768510,1746999089968,-209.40437684,0.00043836,30]
[360768511,1746999090006,-217.15233878,0.00043836,30]
[360768512,1746999090047,-225.18697532,0.00043836,30]
[360768513,1746999090086,-233.51889341,0.00043836,30]
[360768514,1746999090126,-242.15909246,0.00043836,30]
[360768515,1746999090167,-251.11897888,0.00043836,30]
[360768516,1746999090208,-260.4103811,0.00043836,30]
[360768517,1746999090247,-270.0455652,0.00043836,30]
[360768518,1746999090286,-280.03725112,0.00043836,30]
[360768519,1746999090325,-290.39862941,0.00043836,30]
[360768520,1746999090364,-301.1433787,0.00043836,30]
[360768521,1746999091790,224.78,0.0003569,120]
[360768522,1746999110439,-422.3909952,0.00032285,30]
[360768523,1746999110478,-1427.81051948,0.00032285,30]
[360768524,1746999110522,-1175.66913957,0.00032285,30]
[360768525,1746999110562,-894.52780463,0.00032285,32]
[360768526,1746999110598,-3243.22568308,0.00032285,30]
[360768527,1746999110635,-3153.52949499,0.00032285,30]
[360768528,1746999110670,-263.23341429,0.00032285,30]
[360768529,1746999110707,-242.44191261,0.00032285,30]
[360768530,1746999110742,-2216.45978743,0.00032285,30]
[360768531,1746999110777,-3182.39377935,0.00032285,30]